[Event "Titled Tuesday Blitz November 15 Early 2022"]
[White "Ricaurte Lopez, Juan Carlos"]
[Black "Orzech, Dominik"]
[WhiteFideId "3600327"]
[BlackFideId "1115065"]
[WhiteElo "2209"]
[BlackElo "2272"]
[Result "0-1"]
[Round "04"]
[TimeControl "180+1"]
[Date "2022.11.16"]
[WhiteClock "0:00:45"]
[BlackClock "0:01:22"]

1. e4 {[%clk 0:03:00]}  c5 {[%clk 0:02:55]} 2. Nf3 {[%clk 0:02:56]}  d6 {[%clk 0:02:52]} 3. d4 {[%clk 0:02:46]}  cxd4 {[%clk 0:02:51]} 4. Nxd4 {[%clk 0:02:46]}  Nf6 {[%clk 0:02:36]} 5. Nc3 {[%clk 0:02:46]}  a6 {[%clk 0:02:31]} 6. f4 {[%clk 0:02:46]}  Nbd7 {[%clk 0:02:20]} 7. Bc4 {[%clk 0:02:39]}  e6 {[%clk 0:02:16]} 8. O-O {[%clk 0:02:24]}  Qc7 {[%clk 0:02:07]} 9. Bb3 {[%clk 0:02:18]}  b5 {[%clk 0:02:05]} 10. Qd3 {[%clk 0:01:38]}  Bb7 {[%clk 0:02:02]} 11. Bxe6 {[%clk 0:01:35]}  Nc5 {[%clk 0:01:50]} 12. Bxf7+ {[%clk 0:01:22]}  Qxf7 {[%clk 0:01:47]} 13. Qe2 {[%clk 0:01:17]}  O-O-O {[%clk 0:01:44]} 14. Ndxb5 {[%clk 0:00:49]}  axb5 {[%clk 0:01:33]} 15. Qxb5 {[%clk 0:00:45]}  Nfxe4 {[%clk 0:01:22]} 0-1


[Site "https://www.chess.com"]

[Event "Titled Tuesday Blitz November 15 Early 2022"]
[White "Richter, Paul"]
[Black "Zemlyanskii, Ivan"]
[WhiteFideId "2046350"]
[BlackFideId "24249971"]
[WhiteElo "2566"]
[BlackElo "2107"]
[Result "0-1"]
[Round "04"]
[TimeControl "180+1"]
[Date "2022.11.16"]
[WhiteClock "0:00:01"]
[BlackClock "0:00:03"]

1. e4 {[%clk 0:03:00]}  c5 {[%clk 0:02:59]} 2. Nf3 {[%clk 0:03:00]}  d6 {[%clk 0:02:55]} 3. d4 {[%clk 0:03:00]}  cxd4 {[%clk 0:02:56]} 4. Nxd4 {[%clk 0:03:00]}  Nf6 {[%clk 0:02:57]} 5. Nc3 {[%clk 0:03:01]}  a6 {[%clk 0:02:57]} 6. Be2 {[%clk 0:03:01]}  e5 {[%clk 0:02:53]} 7. Nb3 {[%clk 0:03:02]}  Be7 {[%clk 0:02:53]} 8. g4 {[%clk 0:03:02]}  Be6 {[%clk 0:02:47]} 9. g5 {[%clk 0:03:02]}  Nfd7 {[%clk 0:02:47]} 10. Bg4 {[%clk 0:03:02]}  Nc6 {[%clk 0:02:37]} 11. Bxe6 {[%clk 0:02:57]}  fxe6 {[%clk 0:02:38]} 12. Be3 {[%clk 0:02:56]}  Qc7 {[%clk 0:02:18]} 13. Qh5+ {[%clk 0:02:51]}  g6 {[%clk 0:02:15]} 14. Qg4 {[%clk 0:02:51]}  Nf8 {[%clk 0:01:57]} 15. O-O-O {[%clk 0:02:44]}  b5 {[%clk 0:01:50]} 16. h4 {[%clk 0:02:24]}  Qb7 {[%clk 0:01:17]} 17. h5 {[%clk 0:02:15]}  Rg8 {[%clk 0:01:15]} 18. hxg6 {[%clk 0:02:12]}  Rxg6 {[%clk 0:01:14]} 19. Kb1 {[%clk 0:01:03]}  b4 {[%clk 0:01:10]} 20. Ne2 {[%clk 0:01:00]}  a5 {[%clk 0:01:01]} 21. Nd2 {[%clk 0:00:40]}  Qb5 {[%clk 0:00:52]} 22. Rh6 {[%clk 0:00:24]}  a4 {[%clk 0:00:42]} 23. Rxg6 {[%clk 0:00:23]}  hxg6 {[%clk 0:00:43]} 24. Nc1 {[%clk 0:00:19]}  d5 {[%clk 0:00:31]} 25. exd5 {[%clk 0:00:16]}  exd5 {[%clk 0:00:27]} 26. f4 {[%clk 0:00:15]}  d4 {[%clk 0:00:20]} 27. Bg1 {[%clk 0:00:14]}  exf4 {[%clk 0:00:20]} 28. Ne4 {[%clk 0:00:11]}  Qf5 {[%clk 0:00:14]} 29. Qf3 {[%clk 0:00:10]}  Rc8 {[%clk 0:00:11]} 30. Re1 {[%clk 0:00:10]}  Ne6 {[%clk 0:00:10]} 31. Nd3 {[%clk 0:00:09]}  b3 {[%clk 0:00:06]} 32. axb3 {[%clk 0:00:09]}  axb3 {[%clk 0:00:07]} 33. cxb3 {[%clk 0:00:08]}  Kf7 {[%clk 0:00:07]} 34. Bf2 {[%clk 0:00:07]}  Nxg5 {[%clk 0:00:07]} 35. Nxg5+ {[%clk 0:00:05]}  Bxg5 {[%clk 0:00:08]} 36. Re4 {[%clk 0:00:02]}  Kg7 {[%clk 0:00:04]} 37. Be1 {[%clk 0:00:03]}  Bh6 {[%clk 0:00:03]} 38. Bf2 {[%clk 0:00:03]}  Rf8 {[%clk 0:00:03]} 39. Bxd4+ {[%clk 0:00:03]}  Nxd4 {[%clk 0:00:04]} 40. Rxd4 {[%clk 0:00:03]}  g5 {[%clk 0:00:05]} 41. Qd5 {[%clk 0:00:02]}  Qxd5 {[%clk 0:00:04]} 42. Rxd5 {[%clk 0:00:02]}  g4 {[%clk 0:00:05]} 43. Rd4 {[%clk 0:00:02]}  g3 {[%clk 0:00:04]} 44. Ne1 {[%clk 0:00:01]}  f3 {[%clk 0:00:03]} 0-1


[Site "https://www.chess.com"]

[Event "Titled Tuesday Blitz November 15 Early 2022"]
[White "Ristic, Nebojsa B"]
[Black "Goltsev, Dmitry"]
[WhiteFideId "935468"]
[BlackFideId "24176710"]
[WhiteElo "2320"]
[BlackElo "2289"]
[Result "0-1"]
[Round "04"]
[TimeControl "180+1"]
[Date "2022.11.16"]
[WhiteClock "0:00:28"]
[BlackClock "0:00:08"]

1. d4 {[%clk 0:03:00]}  Nf6 {[%clk 0:01:38]} 2. Bf4 {[%clk 0:02:57]}  d6 {[%clk 0:01:38]} 3. Nc3 {[%clk 0:02:57]}  Nbd7 {[%clk 0:01:39]} 4. Nf3 {[%clk 0:02:57]}  g6 {[%clk 0:01:40]} 5. e4 {[%clk 0:02:57]}  Bg7 {[%clk 0:01:40]} 6. Qd2 {[%clk 0:02:58]}  O-O {[%clk 0:01:39]} 7. O-O-O {[%clk 0:02:57]}  Nh5 {[%clk 0:01:36]} 8. Bh6 {[%clk 0:02:57]}  c6 {[%clk 0:01:36]} 9. g4 {[%clk 0:02:51]}  Nhf6 {[%clk 0:01:33]} 10. h3 {[%clk 0:02:43]}  Qa5 {[%clk 0:01:31]} 11. Kb1 {[%clk 0:02:35]}  e5 {[%clk 0:01:23]} 12. dxe5 {[%clk 0:02:30]}  Nxe5 {[%clk 0:01:24]} 13. Nxe5 {[%clk 0:02:26]}  dxe5 {[%clk 0:01:23]} 14. Bxg7 {[%clk 0:02:19]}  Kxg7 {[%clk 0:01:24]} 15. f3 {[%clk 0:02:18]}  Be6 {[%clk 0:01:14]} 16. h4 {[%clk 0:02:16]}  h5 {[%clk 0:01:08]} 17. g5 {[%clk 0:02:06]}  Nd7 {[%clk 0:01:07]} 18. Bh3 {[%clk 0:01:55]}  Nc5 {[%clk 0:01:02]} 19. Qh2 {[%clk 0:01:39]}  Qc7 {[%clk 0:00:56]} 20. Rd2 {[%clk 0:01:27]}  Rad8 {[%clk 0:00:49]} 21. Rhd1 {[%clk 0:01:24]}  Rxd2 {[%clk 0:00:41]} 22. Rxd2 {[%clk 0:01:25]}  Bxh3 {[%clk 0:00:41]} 23. Qxh3 {[%clk 0:01:25]}  Rd8 {[%clk 0:00:41]} 24. Qh2 {[%clk 0:01:24]}  Rxd2 {[%clk 0:00:34]} 25. Qxd2 {[%clk 0:01:25]}  Ne6 {[%clk 0:00:34]} 26. Ne2 {[%clk 0:01:24]}  Qb6 {[%clk 0:00:30]} 27. Qc3 {[%clk 0:01:18]}  Qf2 {[%clk 0:00:28]} 28. Qxe5+ {[%clk 0:01:17]}  Kh7 {[%clk 0:00:27]} 29. Nc1 {[%clk 0:01:12]}  Qxf3 {[%clk 0:00:27]} 30. Qb8 {[%clk 0:01:11]}  Qxe4 {[%clk 0:00:20]} 31. Qxb7 {[%clk 0:01:10]}  Kg7 {[%clk 0:00:21]} 32. Qxa7 {[%clk 0:01:10]}  Qxh4 {[%clk 0:00:20]} 33. a4 {[%clk 0:01:09]}  Qxg5 {[%clk 0:00:19]} 34. a5 {[%clk 0:01:10]}  h4 {[%clk 0:00:17]} 35. a6 {[%clk 0:01:10]}  h3 {[%clk 0:00:17]} 36. Qf2 {[%clk 0:01:04]}  Qg2 {[%clk 0:00:13]} 37. Qxg2 {[%clk 0:01:04]}  hxg2 {[%clk 0:00:14]} 38. Ne2 {[%clk 0:01:05]}  Nc7 {[%clk 0:00:14]} 39. a7 {[%clk 0:01:04]}  f5 {[%clk 0:00:14]} 40. b4 {[%clk 0:01:02]}  f4 {[%clk 0:00:14]} 41. Ng1 {[%clk 0:01:01]}  g5 {[%clk 0:00:13]} 42. Kc1 {[%clk 0:00:58]}  g4 {[%clk 0:00:14]} 43. Kd2 {[%clk 0:00:58]}  Kf6 {[%clk 0:00:14]} 44. c4 {[%clk 0:00:57]}  Ke5 {[%clk 0:00:12]} 45. b5 {[%clk 0:00:56]}  cxb5 {[%clk 0:00:12]} 46. cxb5 {[%clk 0:00:57]}  Na8 {[%clk 0:00:12]} 47. Kd3 {[%clk 0:00:56]}  f3 {[%clk 0:00:11]} 48. Ke3 {[%clk 0:00:56]}  Kf5 {[%clk 0:00:12]} 49. Kf2 {[%clk 0:00:45]}  Kf4 {[%clk 0:00:10]} 50. Ke1 {[%clk 0:00:38]}  g3 {[%clk 0:00:09]} 51. Kd2 {[%clk 0:00:24]}  f2 {[%clk 0:00:09]} 52. Ne2+ {[%clk 0:00:25]}  Kg4 {[%clk 0:00:08]} 53. b6 {[%clk 0:00:24]}  Nxb6 {[%clk 0:00:06]} 54. Nc3 {[%clk 0:00:24]}  g1=Q {[%clk 0:00:06]} 55. Nd5 {[%clk 0:00:24]}  f1=Q {[%clk 0:00:06]} 56. Ne3+ {[%clk 0:00:24]}  Qxe3+ {[%clk 0:00:06]} 57. Kxe3 {[%clk 0:00:25]}  Na8 {[%clk 0:00:06]} 58. Ke4 {[%clk 0:00:25]}  g2 {[%clk 0:00:07]} 59. Ke5 {[%clk 0:00:25]}  g1=Q {[%clk 0:00:08]} 60. Kd6 {[%clk 0:00:26]}  Qf4+ {[%clk 0:00:08]} 61. Kd7 {[%clk 0:00:27]}  Qgd4+ {[%clk 0:00:08]} 62. Kc8 {[%clk 0:00:28]}  Qc7# {[%clk 0:00:08]} 0-1


[Site "https://www.chess.com"]

[Event "Titled Tuesday Blitz November 15 Early 2022"]
[White "Rodriguez Fontecha, Marcos"]
[Black "Cardoso Cardoso, Jose Gabriel"]
[WhiteFideId "2256576"]
[BlackFideId "4430492"]
[WhiteElo "2263"]
[BlackElo "2484"]
[Result "1-0"]
[Round "04"]
[TimeControl "180+1"]
[Date "2022.11.16"]
[WhiteClock "0:00:32"]
[BlackClock "0:00:02"]

1. d4 {[%clk 0:03:00]}  Nf6 {[%clk 0:01:40]} 2. Nf3 {[%clk 0:02:59]}  g6 {[%clk 0:01:40]} 3. Bg5 {[%clk 0:02:59]}  Bg7 {[%clk 0:01:38]} 4. Nbd2 {[%clk 0:02:56]}  d5 {[%clk 0:01:38]} 5. e3 {[%clk 0:02:56]}  c5 {[%clk 0:01:38]} 6. c3 {[%clk 0:02:56]}  b6 {[%clk 0:01:33]} 7. Be2 {[%clk 0:02:55]}  Bb7 {[%clk 0:01:31]} 8. O-O {[%clk 0:02:55]}  O-O {[%clk 0:01:17]} 9. b4 {[%clk 0:02:52]}  Nc6 {[%clk 0:01:14]} 10. bxc5 {[%clk 0:02:47]}  bxc5 {[%clk 0:01:13]} 11. Rb1 {[%clk 0:02:47]}  Bc8 {[%clk 0:01:11]} 12. Qa4 {[%clk 0:02:41]}  Bd7 {[%clk 0:01:09]} 13. Qa3 {[%clk 0:02:41]}  Qa5 {[%clk 0:01:02]} 14. Qxa5 {[%clk 0:02:34]}  Nxa5 {[%clk 0:01:03]} 15. Ne5 {[%clk 0:02:35]}  Be8 {[%clk 0:00:38]} 16. Bf4 {[%clk 0:02:35]}  Nc6 {[%clk 0:00:35]} 17. Rb7 {[%clk 0:02:28]}  Nxe5 {[%clk 0:00:30]} 18. Bxe5 {[%clk 0:02:01]}  Bc6 {[%clk 0:00:21]} 19. Rxe7 {[%clk 0:01:52]}  Rfe8 {[%clk 0:00:14]} 20. Rc7 {[%clk 0:01:50]}  Re6 {[%clk 0:00:12]} 21. Bxf6 {[%clk 0:01:29]}  Bxf6 {[%clk 0:00:13]} 22. Bf3 {[%clk 0:01:25]}  cxd4 {[%clk 0:00:04]} 23. cxd4 {[%clk 0:01:18]}  Rd8 {[%clk 0:00:04]} 24. Rc1 {[%clk 0:01:15]}  Bb5 {[%clk 0:00:03]} 25. Nb3 {[%clk 0:01:12]}  Bc4 {[%clk 0:00:02]} 26. Rxa7 {[%clk 0:01:07]}  Rb6 {[%clk 0:00:02]} 27. g3 {[%clk 0:01:03]}  h5 {[%clk 0:00:01]} 28. h4 {[%clk 0:01:03]}  Kg7 {[%clk 0:00:01]} 29. Na5 {[%clk 0:00:47]}  Bd3 {[%clk 0:00:01]} 30. Rcc7 {[%clk 0:00:46]}  Rf8 {[%clk 0:00:01]} 31. Bxd5 {[%clk 0:00:44]}  Rb1+ {[%clk 0:00:02]} 32. Kg2 {[%clk 0:00:44]}  Bf1+ {[%clk 0:00:03]} 33. Kh2 {[%clk 0:00:41]}  Rb2 {[%clk 0:00:02]} 34. Rxf7+ {[%clk 0:00:41]}  Kh6 {[%clk 0:00:03]} 35. Rxf8 {[%clk 0:00:39]}  Rxf2+ {[%clk 0:00:02]} 36. Kg1 {[%clk 0:00:39]}  Rf5 {[%clk 0:00:01]} 37. Be4 {[%clk 0:00:33]}  Bxd4 {[%clk 0:00:01]} 38. Bxf5 {[%clk 0:00:32]}  Bxe3+ {[%clk 0:00:01]} 39. Kxf1 {[%clk 0:00:32]}  Bxa7 {[%clk 0:00:02]} 1-0


[Site "https://www.chess.com"]

[Event "Titled Tuesday Blitz November 15 Early 2022"]
[White "Ronka, Erik"]
[Black "Manon-og, Ramon Jr."]
[WhiteFideId "505080"]
[BlackFideId "5200776"]
[WhiteElo "2264"]
[BlackElo "2310"]
[Result "1-0"]
[Round "04"]
[TimeControl "180+1"]
[Date "2022.11.16"]
[WhiteClock "0:00:53"]
[BlackClock "0:00:09"]

1. e4 {[%clk 0:03:00]}  c5 {[%clk 0:02:24]} 2. Nf3 {[%clk 0:03:00]}  d6 {[%clk 0:02:21]} 3. d4 {[%clk 0:03:00]}  cxd4 {[%clk 0:02:21]} 4. Nxd4 {[%clk 0:03:01]}  Nf6 {[%clk 0:02:21]} 5. Nc3 {[%clk 0:03:01]}  a6 {[%clk 0:02:18]} 6. Rg1 {[%clk 0:03:01]}  e5 {[%clk 0:02:17]} 7. Nb3 {[%clk 0:03:00]}  Nc6 {[%clk 0:02:16]} 8. g4 {[%clk 0:02:59]}  h6 {[%clk 0:02:16]} 9. h4 {[%clk 0:02:58]}  Be7 {[%clk 0:02:16]} 10. Be3 {[%clk 0:02:48]}  g6 {[%clk 0:02:06]} 11. Be2 {[%clk 0:02:39]}  h5 {[%clk 0:01:57]} 12. gxh5 {[%clk 0:02:34]}  Nxh5 {[%clk 0:01:58]} 13. Nd5 {[%clk 0:02:30]}  Bxh4 {[%clk 0:01:55]} 14. Bb6 {[%clk 0:02:22]}  Bxf2+ {[%clk 0:01:13]} 15. Bxf2 {[%clk 0:02:19]}  Kf8 {[%clk 0:01:10]} 16. Qd2 {[%clk 0:02:05]}  Be6 {[%clk 0:01:08]} 17. O-O-O {[%clk 0:02:03]}  Bxd5 {[%clk 0:00:53]} 18. exd5 {[%clk 0:02:00]}  Ne7 {[%clk 0:00:47]} 19. Rh1 {[%clk 0:01:50]}  Rc8 {[%clk 0:00:28]} 20. Kb1 {[%clk 0:01:45]}  Qd7 {[%clk 0:00:16]} 21. Bxh5 {[%clk 0:01:41]}  gxh5 {[%clk 0:00:16]} 22. Qg5 {[%clk 0:01:39]}  Qf5 {[%clk 0:00:15]} 23. Qxf5 {[%clk 0:01:33]}  Nxf5 {[%clk 0:00:16]} 24. Nd2 {[%clk 0:01:34]}  h4 {[%clk 0:00:14]} 25. Ne4 {[%clk 0:01:32]}  h3 {[%clk 0:00:15]} 26. Rd3 {[%clk 0:01:17]}  h2 {[%clk 0:00:14]} 27. Rf3 {[%clk 0:01:15]}  Rh5 {[%clk 0:00:10]} 28. Ng3 {[%clk 0:01:06]}  Nxg3 {[%clk 0:00:09]} 29. Bxg3 {[%clk 0:01:07]}  Rc5 {[%clk 0:00:10]} 30. Rd3 {[%clk 0:00:59]}  e4 {[%clk 0:00:10]} 31. Bxd6+ {[%clk 0:00:54]}  Kg7 {[%clk 0:00:09]} 32. Rg3+ {[%clk 0:00:53]} 1-0


[Site "https://www.chess.com"]

[Event "Titled Tuesday Blitz November 15 Early 2022"]
[White "Rosh Jain"]
[Black "Thorhallsson, Simon"]
[WhiteFideId "25789465"]
[BlackFideId "2310090"]
[WhiteElo "2233"]
[BlackElo "2109"]
[Result "0-1"]
[Round "04"]
[TimeControl "180+1"]
[Date "2022.11.16"]
[WhiteClock "0:00:03"]
[BlackClock "0:00:09"]

1. e4 {[%clk 0:03:00]}  c5 {[%clk 0:02:57]} 2. Nf3 {[%clk 0:02:59]}  d6 {[%clk 0:02:58]} 3. d4 {[%clk 0:02:57]}  cxd4 {[%clk 0:02:58]} 4. Nxd4 {[%clk 0:02:58]}  Nf6 {[%clk 0:02:57]} 5. Nc3 {[%clk 0:02:56]}  a6 {[%clk 0:02:58]} 6. Bc4 {[%clk 0:02:54]}  e6 {[%clk 0:02:57]} 7. Bb3 {[%clk 0:02:54]}  b5 {[%clk 0:02:56]} 8. Bg5 {[%clk 0:02:46]}  Be7 {[%clk 0:02:56]} 9. a3 {[%clk 0:02:44]}  O-O {[%clk 0:02:55]} 10. Qd2 {[%clk 0:02:43]}  Bb7 {[%clk 0:02:53]} 11. f3 {[%clk 0:02:37]}  Nbd7 {[%clk 0:02:34]} 12. O-O-O {[%clk 0:02:35]}  Nc5 {[%clk 0:02:26]} 13. h4 {[%clk 0:02:30]}  Qc7 {[%clk 0:02:19]} 14. h5 {[%clk 0:02:29]}  Nxb3+ {[%clk 0:01:36]} 15. Nxb3 {[%clk 0:02:28]}  Rfd8 {[%clk 0:01:23]} 16. Qd4 {[%clk 0:02:25]}  e5 {[%clk 0:01:15]} 17. Qf2 {[%clk 0:02:14]}  Rac8 {[%clk 0:00:59]} 18. Bxf6 {[%clk 0:02:09]}  Bxf6 {[%clk 0:00:59]} 19. Qe3 {[%clk 0:01:55]}  Qe7 {[%clk 0:00:34]} 20. Kb1 {[%clk 0:01:51]}  Bg5 {[%clk 0:00:32]} 21. Qf2 {[%clk 0:01:47]}  Rc7 {[%clk 0:00:32]} 22. g3 {[%clk 0:01:30]}  Rdc8 {[%clk 0:00:30]} 23. Na5 {[%clk 0:01:23]}  Ba8 {[%clk 0:00:24]} 24. Qb6 {[%clk 0:01:20]}  Qf6 {[%clk 0:00:15]} 25. f4 {[%clk 0:00:40]}  exf4 {[%clk 0:00:14]} 26. Rxd6 {[%clk 0:00:39]}  Qe7 {[%clk 0:00:14]} 27. gxf4 {[%clk 0:00:22]}  Bxf4 {[%clk 0:00:13]} 28. Rd3 {[%clk 0:00:22]}  Be5 {[%clk 0:00:13]} 29. Rhd1 {[%clk 0:00:10]}  Bxc3 {[%clk 0:00:12]} 30. bxc3 {[%clk 0:00:10]}  Bxe4 {[%clk 0:00:12]} 31. Rd4 {[%clk 0:00:06]}  f5 {[%clk 0:00:12]} 32. Kb2 {[%clk 0:00:04]}  Rxc3 {[%clk 0:00:11]} 33. Nb3 {[%clk 0:00:04]}  Rxc2+ {[%clk 0:00:11]} 34. Ka1 {[%clk 0:00:03]}  Qxa3+ {[%clk 0:00:10]} 35. Kb1 {[%clk 0:00:03]}  Qb2# {[%clk 0:00:09]} 0-1


[Site "https://www.chess.com"]

[Event "Titled Tuesday Blitz November 15 Early 2022"]
[White "Sailer, Mike"]
[Black "Rostomyan, Mikayel"]
[WhiteFideId "2012901"]
[BlackFideId "13313754"]
[WhiteElo "2109"]
[BlackElo "2009"]
[Result "1-0"]
[Round "04"]
[TimeControl "180+1"]
[Date "2022.11.16"]
[WhiteClock "0:00:07"]
[BlackClock "0:00:10"]

1. Nf3 {[%clk 0:02:53]}  d5 {[%clk 0:02:58]} 2. c4 {[%clk 0:02:53]}  d4 {[%clk 0:02:57]} 3. b4 {[%clk 0:02:51]}  c5 {[%clk 0:02:52]} 4. bxc5 {[%clk 0:02:51]}  Nc6 {[%clk 0:02:52]} 5. d3 {[%clk 0:02:50]}  e5 {[%clk 0:02:51]} 6. Ba3 {[%clk 0:02:49]}  Bxc5 {[%clk 0:02:50]} 7. Bxc5 {[%clk 0:02:48]}  Qa5+ {[%clk 0:02:50]} 8. Nbd2 {[%clk 0:02:47]}  Qxc5 {[%clk 0:02:50]} 9. g3 {[%clk 0:02:45]}  f5 {[%clk 0:02:47]} 10. Bg2 {[%clk 0:02:45]}  Nf6 {[%clk 0:02:47]} 11. O-O {[%clk 0:02:45]}  O-O {[%clk 0:02:47]} 12. Nb3 {[%clk 0:02:43]}  Qe7 {[%clk 0:02:45]} 13. a4 {[%clk 0:02:36]}  Rd8 {[%clk 0:02:44]} 14. a5 {[%clk 0:02:37]}  e4 {[%clk 0:02:39]} 15. Nfd2 {[%clk 0:02:30]}  e3 {[%clk 0:02:29]} 16. fxe3 {[%clk 0:02:01]}  Qxe3+ {[%clk 0:02:27]} 17. Kh1 {[%clk 0:02:02]}  Ng4 {[%clk 0:02:27]} 18. Qe1 {[%clk 0:01:48]}  Qh6 {[%clk 0:02:17]} 19. Nf3 {[%clk 0:01:31]}  Ne3 {[%clk 0:02:16]} 20. Rf2 {[%clk 0:01:26]}  Nc2 {[%clk 0:01:57]} 21. Qc1 {[%clk 0:01:25]}  Nxa1 {[%clk 0:01:55]} 22. Qxa1 {[%clk 0:01:26]}  Qe3 {[%clk 0:01:48]} 23. Qf1 {[%clk 0:01:15]}  Bd7 {[%clk 0:01:36]} 24. Nh4 {[%clk 0:00:55]}  g6 {[%clk 0:01:30]} 25. Nc5 {[%clk 0:00:54]}  Nxa5 {[%clk 0:01:17]} 26. Rf4 {[%clk 0:00:39]}  Bc6 {[%clk 0:01:11]} 27. Bxc6 {[%clk 0:00:35]}  Nxc6 {[%clk 0:01:12]} 28. Nxb7 {[%clk 0:00:29]}  Re8 {[%clk 0:01:08]} 29. Rf2 {[%clk 0:00:19]}  Ne5 {[%clk 0:01:04]} 30. Ng2 {[%clk 0:00:17]}  Qh6 {[%clk 0:01:00]} 31. Nf4 {[%clk 0:00:17]}  Ng4 {[%clk 0:00:58]} 32. Nd6 {[%clk 0:00:09]}  Nxf2+ {[%clk 0:00:56]} 33. Qxf2 {[%clk 0:00:09]}  Red8 {[%clk 0:00:52]} 34. Qxd4 {[%clk 0:00:09]}  Rxd6 {[%clk 0:00:30]} 35. Qxd6 {[%clk 0:00:07]}  Qf8 {[%clk 0:00:29]} 36. Qd5+ {[%clk 0:00:06]}  Kh8 {[%clk 0:00:26]} 37. Ne6 {[%clk 0:00:02]}  Rd8 {[%clk 0:00:07]} 38. Qxd8 {[%clk 0:00:03]}  Qxd8 {[%clk 0:00:06]} 39. Nxd8 {[%clk 0:00:04]}  a5 {[%clk 0:00:07]} 40. Nc6 {[%clk 0:00:04]}  a4 {[%clk 0:00:08]} 41. Nb4 {[%clk 0:00:04]}  a3 {[%clk 0:00:09]} 42. c5 {[%clk 0:00:05]}  Kg8 {[%clk 0:00:10]} 43. c6 {[%clk 0:00:05]}  Kf7 {[%clk 0:00:11]} 44. c7 {[%clk 0:00:06]}  Ke7 {[%clk 0:00:12]} 45. c8=Q {[%clk 0:00:07]}  a2 {[%clk 0:00:10]} 46. Qc7+ {[%clk 0:00:07]} 1-0


[Site "https://www.chess.com"]

[Event "Titled Tuesday Blitz November 15 Early 2022"]
[White "Samarth, J Rao"]
[Black "Bulatova, Kamaliya"]
[WhiteFideId "46652370"]
[BlackFideId "34111546"]
[WhiteElo "1564"]
[BlackElo "2039"]
[Result "0-1"]
[Round "04"]
[TimeControl "180+1"]
[Date "2022.11.16"]
[WhiteClock "0:00:05"]
[BlackClock "0:01:47"]

1. c4 {[%clk 0:02:03]}  g6 {[%clk 0:02:58]} 2. d4 {[%clk 0:01:53]}  Bg7 {[%clk 0:02:58]} 3. e4 {[%clk 0:01:53]}  d6 {[%clk 0:02:56]} 4. f4 {[%clk 0:01:53]}  c5 {[%clk 0:02:50]} 5. d5 {[%clk 0:01:11]}  e5 {[%clk 0:02:39]} 6. fxe5 {[%clk 0:01:00]}  Bxe5 {[%clk 0:02:37]} 7. Nf3 {[%clk 0:01:01]}  Bg7 {[%clk 0:02:35]} 8. Bd3 {[%clk 0:00:24]}  Nf6 {[%clk 0:02:30]} 9. O-O {[%clk 0:00:25]}  O-O {[%clk 0:02:28]} 10. Nc3 {[%clk 0:00:23]}  a6 {[%clk 0:02:25]} 11. a4 {[%clk 0:00:17]}  Ng4 {[%clk 0:02:23]} 12. h3 {[%clk 0:00:14]}  Ne5 {[%clk 0:02:22]} 13. Nxe5 {[%clk 0:00:14]}  Bxe5 {[%clk 0:02:19]} 14. Bh6 {[%clk 0:00:13]}  Re8 {[%clk 0:02:19]} 15. Qf3 {[%clk 0:00:13]}  Qe7 {[%clk 0:02:16]} 16. Rae1 {[%clk 0:00:09]}  Nd7 {[%clk 0:02:13]} 17. Bd2 {[%clk 0:00:09]}  Nf6 {[%clk 0:02:05]} 18. Bg5 {[%clk 0:00:03]}  Kg7 {[%clk 0:01:57]} 19. Bxf6+ {[%clk 0:00:04]}  Bxf6 {[%clk 0:01:57]} 20. e5 {[%clk 0:00:05]}  Bxe5 {[%clk 0:01:50]} 21. Ne4 {[%clk 0:00:05]}  f5 {[%clk 0:01:47]} 0-1


[Site "https://www.chess.com"]

[Event "Titled Tuesday Blitz November 15 Early 2022"]
[White "Samunenkov, Ihor"]
[Black "Bluebaum, Matthias"]
[WhiteFideId "14187086"]
[BlackFideId "24651516"]
[WhiteElo "2441"]
[BlackElo "2633"]
[Result "0-1"]
[Round "04"]
[TimeControl "180+1"]
[Date "2022.11.15"]
[WhiteClock "0:00:01"]
[BlackClock "0:00:05"]

1. d4 {[%clk 0:03:00]}  Nf6 {[%clk 0:03:00]} 2. g3 {[%clk 0:02:55]}  d5 {[%clk 0:03:00]} 3. Nf3 {[%clk 0:02:55]}  e6 {[%clk 0:03:00]} 4. Bg2 {[%clk 0:02:55]}  Be7 {[%clk 0:03:01]} 5. c4 {[%clk 0:02:54]}  O-O {[%clk 0:03:02]} 6. O-O {[%clk 0:02:54]}  c6 {[%clk 0:03:02]} 7. Qc2 {[%clk 0:02:50]}  b6 {[%clk 0:03:03]} 8. b3 {[%clk 0:02:50]}  Nbd7 {[%clk 0:02:49]} 9. Rd1 {[%clk 0:02:49]}  Bb7 {[%clk 0:02:44]} 10. Nc3 {[%clk 0:02:48]}  Ba6 {[%clk 0:02:44]} 11. Bf4 {[%clk 0:02:12]}  h6 {[%clk 0:02:39]} 12. Qd3 {[%clk 0:01:50]}  c5 {[%clk 0:02:19]} 13. dxc5 {[%clk 0:01:42]}  bxc5 {[%clk 0:02:10]} 14. Nb5 {[%clk 0:01:22]}  Bxb5 {[%clk 0:01:30]} 15. cxb5 {[%clk 0:01:21]}  Qb6 {[%clk 0:01:31]} 16. Ne5 {[%clk 0:01:14]}  Nxe5 {[%clk 0:01:06]} 17. Bxe5 {[%clk 0:01:14]}  Ng4 {[%clk 0:01:07]} 18. Bc3 {[%clk 0:00:53]}  Rad8 {[%clk 0:00:42]} 19. h3 {[%clk 0:00:34]}  Nf6 {[%clk 0:00:42]} 20. a4 {[%clk 0:00:30]}  Qb8 {[%clk 0:00:30]} 21. Rac1 {[%clk 0:00:21]}  Rc8 {[%clk 0:00:20]} 22. e4 {[%clk 0:00:15]}  c4 {[%clk 0:00:13]} 23. bxc4 {[%clk 0:00:14]}  dxc4 {[%clk 0:00:14]} 24. Qe2 {[%clk 0:00:14]}  e5 {[%clk 0:00:14]} 25. Rc2 {[%clk 0:00:11]}  Rfd8 {[%clk 0:00:11]} 26. Rcd2 {[%clk 0:00:11]}  Rxd2 {[%clk 0:00:11]} 27. Rxd2 {[%clk 0:00:12]}  Qc7 {[%clk 0:00:11]} 28. h4 {[%clk 0:00:09]}  Bc5 {[%clk 0:00:08]} 29. Bh3 {[%clk 0:00:07]}  Re8 {[%clk 0:00:07]} 30. Kg2 {[%clk 0:00:08]}  Bb6 {[%clk 0:00:06]} 31. Rc2 {[%clk 0:00:05]}  Rd8 {[%clk 0:00:04]} 32. Bb2 {[%clk 0:00:04]}  Bd4 {[%clk 0:00:04]} 33. Rxc4 {[%clk 0:00:04]}  Qb6 {[%clk 0:00:04]} 34. Bxd4 {[%clk 0:00:03]}  Rxd4 {[%clk 0:00:05]} 35. Rc6 {[%clk 0:00:02]}  Qa5 {[%clk 0:00:05]} 36. Ra6 {[%clk 0:00:02]}  Qc3 {[%clk 0:00:05]} 37. Rxa7 {[%clk 0:00:01]}  Rd2 {[%clk 0:00:06]} 38. Ra8+ {[%clk 0:00:02]}  Kh7 {[%clk 0:00:05]} 39. Qf3 {[%clk 0:00:02]}  Qxf3+ {[%clk 0:00:03]} 40. Kxf3 {[%clk 0:00:03]}  Rd3+ {[%clk 0:00:03]} 41. Ke2 {[%clk 0:00:03]}  Ra3 {[%clk 0:00:04]} 42. b6 {[%clk 0:00:02]}  Rb3 {[%clk 0:00:05]} 43. a5 {[%clk 0:00:02]}  g6 {[%clk 0:00:05]} 44. f3 {[%clk 0:00:02]}  Kg7 {[%clk 0:00:04]} 45. Rb8 {[%clk 0:00:01]}  Nh5 {[%clk 0:00:05]} 0-1


[Site "https://www.chess.com"]